bitfinex-derivatives/quotes_BNBF0:USTF0_20241230
["timestamp","ask_amount","ask_price","bid_price","bid_amount"]
[1735573298555,0.26468373,696.9,694.89,1.02939324]
[1735573298754,0.26475074,696.89,694.89,1.02939324]
[1735573298950,0.26475074,696.89,694.47,2.19006364]
[1735573298951,0.26475074,696.88,694.42,1.02939324]
[1735573299154,0.26475074,696.87,694.42,1.02939324]
[1735573299354,0.2647258,696.86,694.42,1.02939324]
[1735573299555,0.2647258,696.85,694.42,1.02939324]
[1735573299755,0.2647258,696.84,694.42,1.02939324]
[1735573299959,0.2647258,696.83,694.55,1.02939324]
[1735573300257,0.2647258,696.82,694.55,1.02939324]
[1735573300457,0.2647258,696.81,694.55,1.02939324]
[1735573300658,0.89991061,696.8,694.55,1.02939324]
[1735573300861,0.89991061,696.79,694.55,1.02939324]
[1735573301055,0.89991061,696.78,694.57,1.02939324]
[1735573301252,0.89991061,696.77,694.57,1.02939324]
[1735573301458,0.90003326,696.76,694.57,1.02939324]
[1735573301752,0.90003326,696.75,694.57,1.02939324]
[1735573301954,0.90004066,696.74,694.91,1.02939324]
[1735573302162,0.90004066,696.73,694.91,1.02939324]
[1735573302358,0.26476855,696.72,694.91,1.02939324]
[1735573302553,0.26476855,696.71,694.91,1.02939324]
[1735573302757,0.26476855,696.7,694.91,1.02939324]
[1735573302959,0.26476855,696.69,694.91,1.02939324]
[1735573303158,0.26476855,696.68,694.91,1.02939324]
[1735573303458,0.26476855,696.67,694.91,1.02939324]
[1735573303659,0.26476855,696.66,694.52,1.02939324]
[1735573303961,0.26483452,696.65,694.52,1.02939324]
[1735573304255,0.26483452,696.64,694.52,1.02939324]
[1735573304458,0.26483452,696.63,694.52,1.02939324]
[1735573304655,0.26483452,696.62,694.52,1.02939324]
[1735573304855,1.07532166,696.35,694.53,1.02939324]
[1735573305159,0.26483452,696.34,694.53,1.02939324]
[1735573305360,0.26483452,696.33,694.53,1.02939324]
[1735573305561,0.26483452,696.32,694.53,1.02939324]
[1735573305763,0.26483452,696.31,694.53,1.02939324]
[1735573306061,0.26483452,696.3,694.4,1.02939324]
[1735573306265,0.26483452,696.29,694.4,1.02939324]
[1735573306462,0.26482486,696.28,694.4,1.02939324]
[1735573306661,0.26482486,696.38,694.4,1.02939324]
[1735573306961,1.07532166,696.33,694.33,1.02939324]
[1735573307161,0.26482486,696.32,694.33,1.02939324]
[1735573307456,0.26482486,696.31,694.33,1.02939324]
[1735573307662,0.26482486,696.3,694.34,1.02939324]
[1735573307861,0.26482486,696.29,694.34,1.02939324]
[1735573308162,0.26482486,696.28,694.34,1.02939324]
[1735573308364,0.26482486,696.27,694.34,1.02939324]
[1735573308555,0.26482486,696.26,694.29,1.02939324]
[1735573308761,0.26482486,696.25,694.29,1.02939324]
[1735573308959,0.26482486,696.24,694.29,1.02939324]
[1735573309161,0.26486406,696.23,694.29,1.02939324]
[1735573309362,0.26486406,696.22,694.29,1.02939324]
[1735573309559,0.26486406,696.21,694.05,1.02939324]
[1735573309757,0.26486406,696.2,694.05,1.02939324]
[1735573309965,0.26486406,696.19,694.05,1.02939324]
[1735573310161,0.26486406,696.18,694.05,1.02939324]
[1735573310368,0.26486406,696.17,694.05,1.02939324]
[1735573310569,0.26486406,696.16,694.05,1.02939324]
[1735573310771,0.26486406,696.15,694.01,1.02939324]
[1735573310968,0.26486406,696.14,694.01,1.02939324]
[1735573311269,0.26486406,696.13,694.01,1.02939324]
[1735573311469,0.26486406,696.12,694.01,1.02939324]
[1735573311671,0.26486406,696.11,693.98,1.02939324]
[1735573311864,0.26487502,696.1,693.98,1.02939324]
[1735573312065,0.26487502,696.09,693.98,1.02939324]
[1735573312267,0.26487502,696.08,693.98,1.02939324]
[1735573312467,0.26487502,696.07,693.98,1.02939324]
[1735573312670,0.26487502,696.06,693.98,1.02939324]
[1735573312875,0.26487502,696.05,693.98,1.02939324]
[1735573313072,0.26487502,696.04,693.88,1.02939324]
[1735573313273,0.26487502,696.03,693.88,1.02939324]
[1735573313472,0.26487502,696.02,693.88,1.02939324]
[1735573313773,0.26487502,696.01,693.88,1.02939324]
[1735573313967,0.26487502,696.0,693.88,1.02939324]
[1735573314167,0.26487502,695.99,693.88,1.02939324]
[1735573314474,0.26487502,695.98,693.7,1.02939324]
[1735573314672,0.26487502,695.97,693.7,1.02939324]
[1735573314973,0.26487502,695.96,693.7,1.02939324]
[1735573315173,0.26487502,695.95,693.7,1.02939324]
[1735573315374,0.26487502,695.94,693.7,1.02939324]
[1735573315575,0.26487502,695.93,693.74,1.02939324]
[1735573315774,0.26487502,695.92,693.74,1.02939324]
[1735573316077,0.26487502,695.91,693.74,1.02939324]
[1735573316269,0.26487502,695.9,693.74,1.02939324]
[1735573316471,0.26487502,695.89,693.66,1.02939324]
[1735573316670,0.26487502,695.88,693.66,1.02939324]
[1735573316974,1.07532166,696.53,693.66,1.02939324]
[1735573317174,0.26494066,696.52,693.66,1.02939324]
[1735573317374,0.26494066,696.51,693.66,1.02939324]
[1735573317577,0.26494066,696.5,693.62,1.02939324]
[1735573317878,0.26494066,696.49,693.62,1.02939324]
[1735573318078,0.26494066,696.48,693.62,1.02939324]
[1735573318376,0.26494066,696.47,693.62,1.02939324]
[1735573318674,0.26494066,696.46,693.57,1.02939324]
[1735573318880,0.26494066,696.45,693.57,1.02939324]
[1735573319176,0.26494066,696.44,693.57,1.02939324]
[1735573319372,0.26494066,696.43,693.57,1.02939324]
[1735573319573,0.26494066,696.42,693.57,1.02939324]
[1735573319775,0.26494066,696.42,693.21,0.76129001]
[1735573319776,0.26494066,696.41,693.64,1.02939324]
[1735573319975,0.26494066,696.4,693.64,1.02939324]
[1735573320173,0.26494066,696.39,693.64,1.02939324]
[1735573320371,0.26494066,696.38,693.64,1.02939324]
[1735573320572,0.26494066,696.37,693.64,1.02939324]
[1735573320877,1.29016386,696.8,693.64,1.02939324]
[1735573320878,0.26494066,696.36,693.64,1.02939324]
[1735573321072,0.26494066,696.35,693.64,1.02939324]
[1735573321375,0.26495229,696.34,693.64,1.02939324]
[1735573321681,0.26495229,696.33,693.65,1.02939324]
[1735573321879,0.26495229,696.32,693.65,1.02939324]
[1735573322079,0.26498058,696.31,693.65,1.02939324]
[1735573322278,0.26498058,696.3,693.65,1.02939324]
[1735573322478,0.26498058,696.29,693.65,1.02939324]
[1735573322674,0.26498058,696.28,693.65,1.02939324]
[1735573322876,0.26498058,696.27,693.53,1.02939324]
[1735573323075,0.26498058,696.26,693.53,1.02939324]
[1735573323284,0.26498058,696.25,693.53,1.02939324]
[1735573323482,0.26498058,696.24,693.53,1.02939324]
[1735573323676,0.26498058,696.23,693.53,1.02939324]
[1735573323885,0.26498058,696.22,693.53,1.02939324]
[1735573324088,0.26503951,696.21,693.53,1.02939324]
[1735573324290,0.26503951,696.21,693.02,2.19006364]
[1735573324291,0.26503951,696.2,693.2,1.02939324]
[1735573324479,0.26503951,696.19,693.2,1.02939324]
[1735573324678,0.26503951,696.18,693.2,1.02939324]
[1735573324887,0.26503951,696.17,693.2,1.02939324]
[1735573325081,0.26503951,696.16,693.2,1.02939324]
[1735573325386,0.26503951,696.15,693.17,1.02939324]
[1735573325580,0.26503951,696.14,693.17,1.02939324]
[1735573325786,0.26503951,696.13,693.17,1.02939324]
[1735573325987,0.26503951,696.12,693.17,1.02939324]
[1735573326182,0.26503951,696.11,693.17,1.02939324]
[1735573326390,0.26503951,696.1,693.17,1.02939324]
[1735573326584,0.26511802,696.09,693.17,1.02939324]
[1735573326786,0.26512006,696.08,693.24,1.02939324]
[1735573327081,0.26512006,696.07,693.24,1.02939324]
[1735573327384,0.26512006,696.06,693.24,1.02939324]
[1735573327585,0.26512006,696.05,693.24,1.02939324]
[1735573327787,0.26512006,696.04,693.24,1.02939324]
[1735573327992,0.26512006,696.03,693.07,1.02939324]
[1735573328283,0.26512006,696.02,693.07,1.02939324]
[1735573328489,0.26512006,696.01,693.07,1.02939324]
[1735573328686,0.26512006,696.0,693.07,1.02939324]
[1735573328888,0.26512006,695.99,692.8,1.02939324]
[1735573329090,0.26521591,695.98,692.8,1.02939324]
[1735573329280,0.26521591,695.97,692.8,1.02939324]
[1735573329482,0.26521591,695.96,692.8,1.02939324]
[1735573329686,0.26518669,695.95,692.8,1.02939324]
[1735573329886,0.90132217,695.94,692.8,1.02939324]
[1735573330089,0.90132217,695.93,692.8,1.02939324]
[1735573330287,0.90132217,695.92,692.86,1.02939324]
[1735573330486,0.26518669,695.91,692.86,1.02939324]
[1735573330687,0.90132217,695.9,692.86,1.02939324]
[1735573330993,0.26511802,696.09,692.86,1.02939324]
[1735573330994,0.26518669,695.89,692.86,1.02939324]
[1735573331193,0.26518669,695.88,692.91,1.02939324]
[1735573331394,0.26518669,695.87,692.91,1.02939324]
[1735573331594,0.26518669,695.86,692.91,1.02939324]
[1735573331794,0.26518669,695.85,692.91,1.02939324]
[1735573331994,0.26518669,695.84,692.91,1.02939324]
[1735573332291,0.26518669,695.83,692.84,1.02939324]
[1735573332595,0.26518669,695.82,692.84,1.02939324]
[1735573332796,0.26518669,695.81,692.84,1.02939324]
[1735573332994,0.26518669,695.8,692.84,1.02939324]
[1735573333190,0.26518669,695.79,692.84,1.02939324]
[1735573333390,0.26518669,695.78,692.84,1.02939324]
[1735573333593,0.26518669,695.77,692.84,1.02939324]
[1735573333790,0.26518669,695.76,692.84,1.02939324]
[1735573333992,0.26518669,695.75,692.84,1.02939324]
[1735573334194,0.26520431,695.74,692.84,1.02939324]
[1735573334497,0.26520431,695.73,692.57,1.02939324]
[1735573334696,0.26520431,695.72,692.57,1.02939324]
[1735573334897,0.26520431,695.71,692.57,1.02939324]
[1735573335192,0.26520431,695.7,692.58,1.02939324]
[1735573335392,0.26520431,695.69,692.58,1.02939324]
[1735573335596,0.26520431,695.68,692.58,1.02939324]
[1735573335795,0.26520431,695.67,692.58,1.02939324]
[1735573335996,0.26520431,695.66,692.59,1.02939324]
[1735573336189,0.26520431,695.65,692.59,1.02939324]
[1735573336390,0.26520431,695.64,692.59,1.02939324]
[1735573336590,1.07532166,696.55,692.59,1.02939324]
[1735573336898,0.26520832,696.54,692.59,1.02939324]
[1735573337096,0.26520832,696.53,692.59,1.02939324]
[1735573337300,0.26519858,696.52,692.59,1.02939324]
[1735573337596,0.26519858,696.51,692.59,1.02939324]
[1735573337799,0.26519858,696.5,692.59,1.02939324]
[1735573337996,0.26519858,696.49,692.59,1.02939324]
[1735573338196,0.26519858,696.48,692.59,1.02939324]
[1735573338398,0.26519858,696.47,692.59,1.02939324]
[1735573338596,0.26519858,696.46,692.59,1.02939324]
[1735573338793,0.26519858,696.46,692.43,1.02939324]
[1735573338794,0.9013577,696.45,692.65,1.02939324]
[1735573338993,1.07532166,696.51,692.65,1.02939324]
[1735573338994,0.9013577,696.44,692.65,1.02939324]
[1735573339193,0.9013577,696.43,692.65,1.02939324]
[1735573339399,0.90137545,696.42,692.65,1.02939324]
[1735573339597,0.90137545,696.41,692.65,1.02939324]
[1735573339798,0.90137545,696.4,692.65,1.02939324]
[1735573340105,1.07532166,696.3,692.86,1.02939324]
[1735573340395,0.90137545,696.29,692.86,1.02939324]
[1735573340593,0.90137545,696.28,692.86,1.02939324]
[1735573340792,1.07532166,696.3,692.86,1.02939324]
[1735573340793,0.90137545,696.27,692.86,1.02939324]
[1735573341099,0.90137545,696.26,692.86,1.02939324]
[1735573341298,0.90137545,696.25,692.86,1.02939324]
[1735573341599,0.90137545,696.24,692.98,1.02939324]
[1735573341794,1.07532166,696.37,692.98,1.02939324]
[1735573341994,0.90133529,696.36,692.98,1.02939324]
[1735573342194,0.90133529,696.35,692.98,1.02939324]
[1735573342397,1.07532166,696.26,692.98,1.02939324]
[1735573342593,0.26519137,696.25,692.98,1.02939324]
[1735573342906,0.26519137,696.24,692.98,1.02939324]
[1735573343104,0.26519137,696.23,692.98,1.02939324]
[1735573343297,0.26519137,696.22,692.98,1.02939324]
[1735573343500,0.26519137,696.21,692.98,1.02939324]
[1735573343703,0.26519137,696.2,692.78,1.02939324]
[1735573343902,0.90133529,696.19,692.78,1.02939324]
[1735573344097,0.90133529,696.18,692.78,1.02939324]
[1735573344304,0.63614392,696.17,692.78,1.02939324]
[1735573344604,0.90116515,696.16,693.36,1.02939324]
[1735573344803,0.90116515,696.15,693.36,1.02939324]
[1735573345004,0.90116515,696.14,693.36,1.02939324]
[1735573345203,0.90116515,696.13,693.36,1.02939324]
[1735573345502,0.90116515,696.12,693.36,1.02939324]
[1735573345698,0.90116515,696.12,692.87,2.19006364]
[1735573345699,0.90116515,696.11,693.4,1.02939324]
[1735573346002,0.90116515,696.1,693.4,1.02939324]
[1735573346202,0.90116515,696.09,693.4,1.02939324]
[1735573346498,0.90116515,696.08,693.4,1.02939324]
[1735573346697,1.07532166,696.05,693.35,1.02939324]
[1735573347094,0.9013232,696.04,693.35,1.02939324]
[1735573347304,0.26518749,696.03,693.35,1.02939324]
[1735573347502,0.26518749,696.02,693.35,1.02939324]
[1735573347702,0.26518749,696.01,693.35,1.02939324]
[1735573348000,0.26518749,696.0,693.35,1.02939324]
[1735573348197,0.26518749,695.99,693.35,1.02939324]
[1735573348397,0.26518749,695.98,692.96,1.02939324]
[1735573348600,0.26518749,695.97,692.96,1.02939324]
[1735573348809,0.9013232,695.96,692.96,1.02939324]
[1735573349006,0.9013232,695.95,692.96,1.02939324]
[1735573349208,0.9013232,695.94,692.96,1.02939324]
[1735573349504,0.2652493,695.93,692.96,1.02939324]
[1735573349703,1.07532166,695.75,693.15,1.02939324]
[1735573349907,0.90151208,695.74,693.15,1.02939324]
[1735573350100,0.90151208,695.73,693.15,1.02939324]
[1735573350404,0.90151208,695.72,693.15,1.02939324]
[1735573350605,0.90151208,695.71,693.24,1.02939324]
[1735573350799,0.90151208,695.7,693.24,1.02939324]
[1735573350997,0.90151208,695.69,693.24,1.02939324]
[1735573351203,0.90151208,695.68,693.24,1.02939324]
[1735573351505,0.90151208,695.67,693.24,1.02939324]
[1735573351805,0.90151208,695.67,692.68,2.19006364]
[1735573351806,0.90151208,695.66,693.35,1.02939324]
[1735573352004,0.90151208,695.65,693.35,1.02939324]
[1735573352305,0.90151208,695.64,693.35,1.02939324]
[1735573352604,1.07532166,695.79,693.35,1.02939324]
[1735573352803,0.90146146,695.78,693.35,1.02939324]
[1735573353005,1.07532166,695.76,693.35,1.02939324]
[1735573353204,0.26523282,695.75,693.35,1.02939324]
[1735573354402,0.26523282,695.75,693.46,1.02939324]
[1735573354602,1.07532166,696.51,693.46,1.02939324]
[1735573354801,0.26504058,696.5,693.46,1.02939324]
[1735573355004,0.26504058,696.49,693.46,1.02939324]
[1735573355206,0.26504058,696.48,693.46,1.02939324]
[1735573355407,1.07532166,696.33,693.65,1.02939324]
[1735573355705,0.26504058,696.32,693.65,1.02939324]
[1735573355905,0.26504058,696.31,693.65,1.02939324]
[1735573356204,1.07532166,696.29,693.17,1.02939324]
[1735573356408,0.26504058,696.28,693.17,1.02939324]
[1735573356602,0.26504058,696.27,693.17,1.02939324]
[1735573356807,0.26504058,696.26,693.17,1.02939324]
[1735573357007,0.26504058,696.25,693.17,1.02939324]
[1735573357203,0.26508674,696.24,693.17,1.02939324]
[1735573357410,1.29016386,696.78,693.17,1.02939324]
[1735573357411,1.07532166,696.17,693.56,1.02939324]
[1735573357606,0.26508674,696.16,693.56,1.02939324]
[1735573357807,0.26508674,696.15,693.56,1.02939324]
[1735573358007,1.07532166,696.17,693.56,1.02939324]
[1735573358305,0.26516501,696.16,693.56,1.02939324]
[1735573358503,1.07532166,696.14,693.19,1.02939324]
[1735573358704,0.26516501,696.13,693.19,1.02939324]
[1735573358905,0.26516501,696.12,693.19,1.02939324]
[1735573359105,1.07532166,696.14,693.19,1.02939324]
[1735573359106,0.26516501,696.11,693.19,1.02939324]
[1735573359407,1.07532166,695.96,693.07,1.02939324]
[1735573359604,0.26516501,695.95,693.07,1.02939324]
[1735573359807,0.26519245,695.94,693.07,1.02939324]
[1735573360008,0.26519245,695.93,693.07,1.02939324]
[1735573360209,0.26519245,695.92,693.07,1.02939324]
[1735573360407,0.26519245,695.92,692.1,2.19006364]
[1735573360408,0.26518956,695.91,693.18,1.02939324]
[1735573360712,1.07532166,695.97,693.18,1.02939324]
[1735573360713,0.26518956,695.9,693.18,1.02939324]
[1735573360914,0.26518956,695.89,693.18,1.02939324]
[1735573361111,0.26518956,695.88,693.18,1.02939324]
[1735573361312,0.26518956,695.87,693.1,1.02939324]
[1735573361512,0.26518956,695.86,693.1,1.02939324]
[1735573361712,0.26518956,695.85,693.1,1.02939324]
[1735573361913,0.26518956,695.84,693.1,1.02939324]
[1735573362113,1.07532166,696.03,693.1,1.02939324]
[1735573362314,0.2652221,695.83,693.1,1.02939324]
[1735573362516,0.26522153,695.82,692.99,1.02939324]
[1735573362714,0.26522153,695.86,692.99,1.02939324]
[1735573362915,0.26522153,695.85,692.99,1.02939324]
[1735573363110,0.26522153,695.84,692.99,1.02939324]
[1735573363316,0.26522153,695.83,692.99,1.02939324]
[1735573363613,0.26522153,695.82,692.94,1.02939324]
[1735573363815,0.26522153,695.81,692.94,1.02939324]
[1735573364016,0.26522153,695.8,692.94,1.02939324]
[1735573364216,0.26522153,695.79,692.94,1.02939324]
[1735573364517,0.26522153,695.78,692.99,1.02939324]
[1735573364711,0.26522153,695.77,692.99,1.02939324]
[1735573364910,0.26522153,695.76,692.99,1.02939324]
[1735573365114,0.26522153,695.75,692.99,1.02939324]
[1735573365316,0.26522153,695.74,692.99,1.02939324]
[1735573365617,9.04083698,696.48,692.81,1.02939324]
[1735573365618,0.26522153,695.73,692.98,1.02939324]
[1735573365811,0.26522153,695.72,692.98,1.02939324]
[1735573366015,0.26522153,695.71,692.98,1.02939324]
[1735573366317,0.26522153,695.7,692.98,1.02939324]
[1735573366510,0.26522153,695.69,692.98,1.02939324]
[1735573366716,1.07532166,695.59,693.11,1.02939324]
[1735573366914,0.26522153,695.58,693.11,1.02939324]
[1735573367115,0.26522153,695.57,693.11,1.02939324]
[1735573367313,0.26522153,695.56,693.11,1.02939324]
[1735573367513,0.26522153,695.55,693.11,1.02939324]
[1735573367717,0.26527005,695.54,693.11,1.02939324]
[1735573368019,0.26527005,695.53,693.11,1.02939324]
[1735573368316,0.26527005,695.52,693.06,1.02939324]
[1735573368514,0.26527005,695.51,693.06,1.02939324]
[1735573368711,1.07532166,695.58,693.06,1.02939324]
[1735573369120,3.87005553,698.69,692.99,1.02939324]
[1735573369121,1.07532166,695.69,692.99,1.02939324]
[1735573369721,0.26526554,695.68,692.99,1.02939324]
[1735573369916,0.26526554,695.68,692.97,1.02939324]
[1735573370317,0.26526554,695.67,692.97,1.02939324]
[1735573370518,1.07532166,695.69,692.97,1.02939324]
[1735573370721,0.2652693,695.68,692.97,1.02939324]
[1735573371023,1.07532166,695.66,692.98,1.02939324]
[1735573371226,0.2652693,695.65,692.98,1.02939324]
[1735573371426,1.07532166,695.66,692.98,1.02939324]
[1735573371427,0.2652693,695.64,692.98,1.02939324]
[1735573371625,1.07532166,695.66,692.98,1.02939324]
[1735573371626,0.2652693,695.63,692.98,1.02939324]
[1735573371827,1.07532166,695.36,693.1,1.02939324]
[1735573372019,0.2652693,695.35,693.1,1.02939324]
[1735573372227,0.2652693,695.34,693.1,1.02939324]
[1735573372424,0.2652693,695.33,693.1,1.02939324]
[1735573372620,0.2652693,695.32,693.1,1.02939324]
[1735573372821,0.2652693,695.31,693.08,1.02939324]
[1735573373036,0.2652693,695.3,693.08,1.02939324]
[1735573373223,0.26529868,695.29,693.08,1.02939324]
[1735573373426,0.26529868,695.28,693.08,1.02939324]
[1735573373619,0.26529868,695.27,693.08,1.02939324]
[1735573373819,0.26529868,695.27,692.44,2.19006364]
[1735573373820,0.26529868,695.26,693.09,1.02939324]
[1735573374025,0.26529868,695.25,693.09,1.02939324]
[1735573374325,0.26529868,695.24,693.09,1.02939324]
[1735573374524,0.26529868,695.23,693.09,1.02939324]
[1735573374726,0.26529868,695.22,693.03,1.02939324]
[1735573375027,0.26529868,695.21,693.03,1.02939324]
[1735573375229,0.26529868,695.2,693.03,1.02939324]
[1735573375524,0.26529868,695.19,693.03,1.02939324]
[1735573375728,0.26529868,695.18,693.03,1.02939324]
[1735573375926,0.26529868,695.17,693.03,1.02939324]
[1735573376130,0.26529868,695.16,693.03,1.02939324]
[1735573376429,1.07532166,696.12,693.25,1.02939324]
[1735573376623,0.26513371,696.11,693.25,1.02939324]
[1735573376828,0.26513371,696.1,693.25,1.02939324]
[1735573377127,1.07532166,696.12,693.25,1.02939324]
[1735573377128,0.26513371,696.09,693.25,1.02939324]
[1735573377329,0.26513371,696.08,693.25,1.02939324]
[1735573377529,1.07532166,695.97,693.31,1.02939324]
[1735573377829,0.26513371,695.96,693.31,1.02939324]
[1735573378129,0.26513371,695.95,693.31,1.02939324]
[1735573378425,1.07532166,695.97,693.31,1.02939324]
[1735573378629,0.26510979,695.96,693.31,1.02939324]
[1735573378831,0.26510979,695.95,693.33,1.02939324]
[1735573379128,0.26510979,695.94,693.33,1.02939324]
[1735573379328,0.26510979,695.93,693.33,1.02939324]
[1735573379524,0.26510979,695.92,693.33,1.02939324]
[1735573379830,0.26510979,695.91,693.33,1.02939324]
[1735573380029,0.26510979,695.9,693.33,1.02939324]
[1735573380231,0.26510979,695.89,693.1,1.02939324]
[1735573380429,0.26510979,695.88,693.1,1.02939324]
[1735573380631,0.26510979,695.87,693.1,1.02939324]
[1735573380931,0.26510979,695.86,693.1,1.02939324]
[1735573381232,0.26510979,695.85,693.1,1.02939324]
[1735573381427,0.26510979,695.84,693.1,1.02939324]
[1735573381632,0.26510979,695.83,692.89,1.02939324]
[1735573381931,0.26510979,695.82,692.89,1.02939324]
[1735573382130,0.26510979,695.81,692.89,1.02939324]
[1735573382332,0.26510979,695.8,692.89,1.02939324]
[1735573382539,0.26510979,695.79,693.42,1.02939324]
[1735573382730,1.07532166,695.84,693.42,1.02939324]
[1735573382930,0.26505797,695.83,693.42,1.02939324]
[1735573383133,0.26505797,695.82,693.42,1.02939324]
[1735573383331,0.26505797,695.81,693.42,1.02939324]
[1735573383632,0.26505797,695.8,693.42,1.02939324]
[1735573383834,0.26505797,695.79,693.64,1.02939324]
[1735573384028,0.26505797,695.78,693.64,1.02939324]
[1735573384227,0.26505797,695.77,693.64,1.02939324]
[1735573384425,1.07532166,695.89,693.64,1.02939324]
[1735573384426,0.26505797,695.88,693.64,1.02939324]
[1735573384630,0.26505797,695.87,693.64,1.02939324]
[1735573384832,0.26505797,695.86,693.33,1.02939324]
[1735573385032,0.26505797,695.85,693.33,1.02939324]
[1735573385232,0.26505797,695.84,693.33,1.02939324]
[1735573385433,0.26507154,695.83,693.33,1.02939324]
[1735573385632,0.26507154,695.82,693.34,1.02939324]
[1735573385932,0.26507154,695.81,693.34,1.02939324]
[1735573386128,0.26507154,695.8,693.34,1.02939324]
[1735573386332,0.26507154,695.79,693.34,1.02939324]
[1735573386531,0.26507154,695.78,693.34,1.02939324]
[1735573386727,0.26507154,695.77,693.36,1.02939324]
[1735573386933,0.26507154,695.76,693.36,1.02939324]
[1735573387133,0.26507154,695.75,693.36,1.02939324]
[1735573387331,0.26507154,695.74,693.36,1.02939324]
[1735573387528,0.26507154,695.73,693.36,1.02939324]
[1735573387728,0.26507154,695.72,693.36,1.02939324]
[1735573387929,0.26507154,695.71,693.69,1.02939324]
[1735573388133,0.26507154,695.7,693.69,1.02939324]
[1735573388333,0.26507154,695.69,693.69,1.02939324]
[1735573388537,0.26507154,695.68,693.69,1.02939324]
[1735573388729,0.26507154,695.67,693.69,1.02939324]
[1735573388933,0.26507154,695.66,693.69,1.02939324]
[1735573389133,1.07532166,695.98,693.61,1.02939324]
[1735573389134,0.26507154,695.65,693.61,1.02939324]
[1735573389333,0.26507154,695.64,693.61,1.02939324]
[1735573389632,0.26507154,695.63,693.61,1.02939324]
[1735573389828,0.26507154,695.62,693.61,1.02939324]
[1735573390027,1.07532166,695.98,693.61,1.02939324]
[1735573390028,0.26507154,695.61,693.61,1.02939324]
[1735573390233,0.26507154,695.6,693.61,1.02939324]
[1735573390532,0.26506463,695.59,693.61,1.02939324]
[1735573390728,0.26506463,695.58,693.61,1.02939324]
[1735573390935,0.26506463,695.57,693.61,1.02939324]
[1735573391136,0.26506193,695.56,693.38,1.02939324]
[1735573391335,0.26506193,695.55,693.38,1.02939324]
[1735573391635,0.26506193,695.54,693.38,1.02939324]
[1735573391829,0.26506193,696.18,693.38,1.02939324]
[1735573392032,0.26506193,696.17,693.38,1.02939324]
[1735573392228,0.26506193,696.16,693.38,1.02939324]
[1735573392534,0.26506193,696.15,693.38,1.02939324]
[1735573392829,0.26506193,696.14,693.38,1.02939324]
[1735573393035,0.26506193,696.13,693.38,1.02939324]
[1735573393236,0.26506164,696.12,693.37,1.02939324]
[1735573393436,0.26506164,696.11,693.37,1.02939324]
[1735573393633,0.26506164,696.1,693.37,1.02939324]
[1735573393834,0.26506164,696.09,693.37,1.02939324]
[1735573394030,0.26506164,696.08,693.37,1.02939324]
[1735573394231,0.26506164,696.07,693.37,1.02939324]
[1735573394439,0.26506164,696.06,693.36,1.02939324]
[1735573394733,0.26506164,696.05,693.36,1.02939324]
[1735573394938,0.26506164,696.04,693.36,1.02939324]
[1735573395133,0.26506164,696.03,693.36,1.02939324]
[1735573395338,1.07532166,696.2,693.36,1.02939324]
[1735573395339,0.26506164,696.02,693.36,1.02939324]
[1735573395536,0.26506164,696.01,693.36,1.02939324]
[1735573395737,0.26506563,696.0,693.36,1.02939324]
[1735573395934,0.26506563,695.99,693.39,1.02939324]
[1735573396140,0.26506563,695.98,693.39,1.02939324]
[1735573396332,0.26506563,695.97,693.39,1.02939324]
[1735573396639,0.26506563,695.96,693.39,1.02939324]
[1735573396940,0.26506563,695.95,693.52,1.02939324]
[1735573397138,0.26506563,695.94,693.52,1.02939324]
[1735573397337,0.26506563,695.93,693.52,1.02939324]
[1735573397536,0.26506563,695.92,693.52,1.02939324]
[1735573397738,0.26506563,695.91,693.52,1.02939324]
[1735573397939,0.26506563,695.9,693.52,1.02939324]
[1735573398135,0.26506563,695.89,693.51,1.02939324]
[1735573398334,0.26506563,695.88,693.51,1.02939324]
[1735573398533,0.26506563,695.87,693.51,1.02939324]
[1735573398733,0.26506563,695.86,693.51,1.02939324]
[1735573398937,0.26513718,695.85,693.51,1.02939324]
[1735573399138,0.26513718,695.85,693.13,2.19006364]
[1735573399139,0.26513718,695.84,693.21,1.02939324]
[1735573399339,0.26513718,695.83,693.21,1.02939324]
[1735573399639,0.26513718,695.82,693.21,1.02939324]
[1735573399836,0.26513718,695.81,693.21,1.02939324]
[1735573400033,0.26513718,695.8,693.21,1.02939324]
[1735573400234,0.26513718,695.79,693.27,1.02939324]
[1735573400437,0.26513718,695.78,693.27,1.02939324]
[1735573400737,0.26513718,695.77,693.27,1.02939324]
[1735573400938,0.26513718,695.76,693.28,1.02939324]
[1735573401139,0.26513718,695.75,693.28,1.02939324]
[1735573401439,0.26513718,695.74,693.28,1.02939324]
[1735573401633,0.26513718,695.73,693.28,1.02939324]
[1735573401833,0.26513718,695.72,693.28,1.02939324]
[1735573402133,0.26513718,695.71,693.33,1.02939324]
[1735573402337,0.26513718,695.7,693.33,1.02939324]
[1735573402537,0.26513718,695.69,693.33,1.02939324]
[1735573402740,0.26513718,695.68,693.33,1.02939324]
[1735573402936,0.26513718,695.67,693.33,1.02939324]
[1735573403133,0.26513718,695.66,693.35,1.02939324]
[1735573403337,0.26513718,695.65,693.35,1.02939324]
[1735573403539,0.26513718,695.64,693.35,1.02939324]
[1735573403839,0.26513718,695.63,693.35,1.02939324]
[1735573404135,0.26513718,695.62,693.62,1.06970474]
[1735573404338,0.26513718,695.61,693.62,1.06970474]
[1735573404540,0.26513718,695.6,693.62,1.06970474]